fUSD/lending_fUSD_20240317
["ID","MTS","AMOUNT","RATE_DAILY","PERIOD"]
[319295541,1710642651247,-681.12,0.00015498,2]
[319295542,1710642651257,-681.12,0.00015498,2]
[319295543,1710642651266,-500.0,0.00015498,2]
[319295544,1710642651276,-681.12,0.00015498,2]
[319295545,1710642651286,-500.0,0.00015498,2]
[319295546,1710642651295,-681.12,0.00015498,2]
[319295547,1710642651305,-500.0,0.00015498,2]
[319295548,1710642651315,-681.12,0.00015498,2]
[319295549,1710642651325,-500.0,0.00015498,2]
[319295550,1710642651335,-681.12,0.00015498,2]
[319295551,1710642651346,-599.78007431,0.00015498,2]
[319295552,1710642651580,-500.0,0.00015498,2]
[319295553,1710642651598,-500.0,0.00015498,2]
[319295554,1710642651649,-500.0,0.00015498,2]
[319295555,1710642651658,-500.0,0.00015498,2]
[319295556,1710642651668,-500.0,0.00015498,2]
[319295557,1710642651677,-257.78,0.00015498,2]
[319295558,1710642651687,-1292.38,0.00015498,2]
[319295559,1710642651697,-1292.38,0.00015498,2]
[319295560,1710642651708,-1292.38,0.00015498,2]
[319295561,1710642651718,-1292.38,0.00015498,2]
[319295562,1710642651727,-1292.38,0.00015498,2]
[319295563,1710642651736,-1292.38,0.00015498,2]
[319295564,1710642651746,-1292.38,0.00015498,2]
[319295565,1710642651755,-1292.38,0.00015498,2]
[319295566,1710642651765,-994.44,0.00015498,2]
[319295567,1710642651775,-994.44,0.00015498,2]
[319295568,1710642651784,-994.44,0.00015498,2]
[319295569,1710642651794,-994.44,0.00015498,2]
[319295570,1710642651803,-994.44,0.00015498,2]
[319295571,1710642651813,-994.44,0.00015498,2]
[319295572,1710642651822,-994.44,0.00015498,2]
[319295573,1710642651833,-189.99279077,0.00015498,2]
[319295574,1710642651844,-500.0,0.00015498,2]
[319295575,1710642651855,-500.0,0.00015498,2]
[319295576,1710642651866,-500.0,0.00015498,2]
[319295577,1710642651877,-500.0,0.00015498,2]
[319295578,1710642651887,-500.0,0.00015498,2]
[319295579,1710642651899,-500.0,0.00015498,2]
[319295580,1710642651910,-394.30099559,0.00015498,2]
[319295581,1710642651920,-500.0,0.00015498,2]
[319295582,1710642651931,-500.0,0.00015498,2]
[319295583,1710642651941,-500.0,0.00015498,2]
[319295584,1710642651954,-500.0,0.00015498,2]
[319295585,1710642651965,-500.0,0.00015498,2]
[319295586,1710642651975,-500.0,0.00015498,2]
[319295587,1710642651985,-238.56548138,0.00015498,2]
[319295588,1710642651995,-500.0,0.00015498,2]
[319295589,1710642652006,-500.0,0.00015498,2]
[319295590,1710642652016,-526.89122197,0.00015498,2]
[319295591,1710642652027,-500.0,0.00015498,2]
[319295592,1710642652038,-500.0,0.00015498,2]
[319295593,1710642652049,-500.0,0.00015498,2]
[319295594,1710642652059,-500.0,0.00015498,2]
[319295595,1710642652069,-500.0,0.00015498,2]
[319295596,1710642652078,-500.0,0.00015498,2]
[319295597,1710642652087,-500.0,0.00015498,2]
[319295598,1710642652097,-500.0,0.00015498,2]
[319295599,1710642652106,-500.0,0.00015498,2]
[319295600,1710642652116,-500.0,0.00015498,2]
[319295601,1710642652127,-500.0,0.00015498,2]
[319295602,1710642652137,-289.08,0.00015498,2]
[319295603,1710642652147,-630.8,0.00015498,2]
[319295604,1710642652157,-630.8,0.00015498,2]
[319295605,1710642652168,-630.8,0.00015498,2]
[319295606,1710642652177,-630.8,0.00015498,2]
[319295607,1710642652186,-630.8,0.00015498,2]
[319295608,1710642652195,-630.8,0.00015498,2]
[319295609,1710642652206,-630.8,0.00015498,2]
[319295610,1710642652217,-515.65,0.00015498,2]
[319295611,1710642652229,-500.0,0.00015498,2]
[319295612,1710642652239,-500.0,0.00015498,2]
[319295613,1710642652250,-416.32499305,0.00015498,2]
[319295614,1710642652261,-500.0,0.00015498,2]
[319295615,1710642652273,-256.13273885,0.00015498,2]
[319295616,1710642652283,-500.0,0.00015498,2]
[319295617,1710642652294,-500.0,0.00015498,2]
[319295618,1710642652304,-500.0,0.00015498,2]
[319295619,1710642652314,-500.0,0.00015498,2]
[319295620,1710642652325,-500.0,0.00015498,2]
[319295621,1710642652335,-510.41426478,0.00015498,2]
[319295622,1710642652345,-500.0,0.00015498,2]
[319295623,1710642652355,-500.0,0.00015498,2]
[319295624,1710642652365,-500.0,0.00015498,2]
[319295625,1710642652374,-500.0,0.00015498,2]
[319295626,1710642652384,-500.0,0.00015498,2]
[319295627,1710642652394,-500.0,0.00015498,2]
[319295628,1710642652403,-173.73,0.00015498,2]
[319295629,1710642652413,-500.0,0.00015498,2]
[319295630,1710642652422,-500.0,0.00015498,2]
[319295631,1710642652432,-500.0,0.00015498,2]
[319295632,1710642652442,-500.0,0.00015498,2]
[319295633,1710642652453,-500.0,0.00015498,2]
[319295634,1710642652462,-500.0,0.00015498,2]
[319295635,1710642652472,-500.0,0.00015498,2]
[319295636,1710642652481,-500.0,0.00015498,2]
[319295637,1710642652491,-500.0,0.00015498,2]
[319295638,1710642652501,-460.91788727,0.00015498,2]
[319295639,1710642652510,-500.0,0.00015498,2]
[319295640,1710642652520,-317.14585656,0.00015498,2]
[319295641,1710642652529,-500.0,0.00015498,2]
[319295642,1710642652538,-500.0,0.00015498,2]
[319295643,1710642652548,-500.0,0.00015498,2]
[319295644,1710642652557,-500.0,0.00015498,2]
[319295645,1710642652567,-500.0,0.00015498,2]
[319295646,1710642652577,-500.0,0.00015498,2]
[319295647,1710642652587,-329.68,0.00015498,2]
[319295648,1710642652596,-544.08,0.00015498,2]
[319295649,1710642652606,-544.08,0.00015498,2]
[319295650,1710642652616,-544.08,0.00015498,2]
[319295651,1710642652626,-544.08,0.00015498,2]
[319295652,1710642652637,-544.08,0.00015498,2]
[319295653,1710642652650,-544.08,0.00015498,2]
[319295654,1710642652660,-544.08,0.00015498,2]
[319295655,1710642652671,-500.0,0.00015498,2]
[319295656,1710642652682,-500.0,0.00015498,2]
[319295657,1710642652692,-500.0,0.00015498,2]
[319295658,1710642652703,-500.0,0.00015498,2]
[319295659,1710642652714,-500.0,0.00015498,2]
[319295660,1710642652726,-500.0,0.00015498,2]
[319295661,1710642652736,-500.0,0.00015498,2]
[319295662,1710642652747,-500.0,0.00015498,2]
[319295663,1710642652757,-500.0,0.00015498,2]
[319295664,1710642652767,-500.0,0.00015498,2]
[319295665,1710642652777,-500.0,0.00015498,2]
[319295666,1710642652787,-500.0,0.00015498,2]
[319295667,1710642652797,-558.92,0.00015498,2]
[319295668,1710642652807,-635.79,0.00015498,2]
[319295669,1710642652817,-827.9,0.00015498,2]
[319295670,1710642652827,-635.79,0.00015498,2]
[319295671,1710642652837,-827.9,0.00015498,2]
[319295672,1710642652847,-635.79,0.00015498,2]
[319295673,1710642652857,-827.9,0.00015498,2]
[319295674,1710642652867,-635.79,0.00015498,2]
[319295675,1710642652878,-827.9,0.00015498,2]
[319295676,1710642652888,-635.79,0.00015498,2]
[319295677,1710642652898,-827.9,0.00015498,2]
[319295678,1710642652908,-635.79,0.00015498,2]
[319295679,1710642652919,-827.9,0.00015498,2]
[319295680,1710642652930,-635.79,0.00015498,2]
[319295681,1710642652940,-827.9,0.00015498,2]
[319295682,1710642652950,-2646.79,0.00015498,2]
[319295683,1710642652961,-2646.79,0.00015498,2]
[319295684,1710642652971,-2646.79,0.00015498,2]
[319295685,1710642652982,-2646.79,0.00015498,2]
[319295686,1710642652993,-2646.79,0.00015498,2]
[319295687,1710642653003,-2646.79,0.00015498,2]
[319295688,1710642653013,-2646.79,0.00015498,2]
[319295689,1710642653024,-4953.72,0.00015498,2]
[319295690,1710642653035,-4953.72,0.00015498,2]
[319295691,1710642653046,-4953.72,0.00015498,2]
[319295692,1710642653055,-4953.72,0.00015498,2]
[319295693,1710642653066,-4953.72,0.00015498,2]
[319295694,1710642653077,-4953.72,0.00015498,2]
[319295695,1710642653088,-4953.72,0.00015498,2]
[319295696,1710642653098,-500.0,0.00015498,2]
[319295697,1710642653107,-500.0,0.00015498,2]
[319295698,1710642653119,-375.52,0.00015498,2]
[319295699,1710642653130,-1890.61,0.00015498,2]
[319295700,1710642653140,-1890.61,0.00015498,2]
[319295701,1710642653150,-1890.61,0.00015498,2]
[319295702,1710642653161,-1890.61,0.00015498,2]
[319295703,1710642653172,-1890.61,0.00015498,2]
[319295704,1710642653182,-1890.61,0.00015498,2]
[319295705,1710642653192,-1890.61,0.00015498,2]
[319295706,1710642653203,-1890.61,0.00015498,2]
[319295707,1710642653214,-1587.31,0.00015498,2]
[319295708,1710642653225,-1587.31,0.00015498,2]
[319295709,1710642653236,-1587.31,0.00015498,2]
[319295710,1710642653246,-1587.31,0.00015498,2]
[319295711,1710642653257,-1587.31,0.00015498,2]
[319295712,1710642653268,-1587.31,0.00015498,2]
[319295713,1710642653278,-1587.31,0.00015498,2]
[319295714,1710642653288,-1236.7,0.00015498,2]
[319295715,1710642653298,-932.78,0.00015498,2]
[319295716,1710642653308,-932.78,0.00015498,2]
[319295717,1710642653321,-1236.7,0.00015498,2]
[319295718,1710642653331,-932.78,0.00015498,2]
[319295719,1710642653342,-1236.7,0.00015498,2]
[319295720,1710642653352,-932.78,0.00015498,2]
[319295721,1710642653362,-1236.7,0.00015498,2]
[319295722,1710642653372,-932.78,0.00015498,2]
[319295723,1710642653383,-1236.7,0.00015498,2]
[319295724,1710642653392,-932.78,0.00015498,2]
[319295725,1710642653402,-932.78,0.00015498,2]
[319295726,1710642653411,-1000.0,0.00015499,2]
[319295727,1710642653420,-500018.58068127,0.00015499,2]
[319295728,1710642653647,-644.07517798,0.00015499,2]
[319295729,1710642654031,-169.91,0.00013768,2]
[319295730,1710642654043,-447.04048299,0.00015433,2]
[319295731,1710642654080,-816.95951701,0.00015433,2]
[319295732,1710642654093,-1236.7,0.00015498,2]
[319295733,1710642654106,-1236.7,0.00015498,2]
[319295734,1710642654116,-383.62150296,0.00015499,2]
[319295735,1710642654177,-2009.72592507,0.00015499,2]
[319295736,1710642654398,-1174700.80584296,0.00015499,2]
[319295737,1710642654411,-2290.88842714,0.00015499,2]
[319295738,1710642654423,-150.01,0.00015499,2]
[319295739,1710642654433,-1000.0,0.00015499,2]
[319295740,1710642654445,-345.41643369,0.00015499,5]
[319295741,1710642654460,-345.41643369,0.00015499,5]
[319295742,1710642654471,-345.41643368,0.00015499,5]
[319295743,1710642654481,-1000.0,0.00015499,2]
[319295744,1710642654491,-1000.0,0.00015499,2]
[319295745,1710642654503,-1000.0,0.00015499,2]
[319295746,1710642654513,-1000.0,0.00015499,2]
[319295747,1710642654524,-1006.0094,0.00015499,2]
[319295748,1710642654535,-1000.0,0.00015499,2]
[319295749,1710642654547,-615.53,0.00015499,2]
[319295750,1710642654558,-615.53,0.00015499,2]
[319295751,1710642654570,-615.53,0.00015499,2]
[319295752,1710642654580,-615.53,0.00015499,2]
[319295753,1710642654592,-615.53,0.00015499,2]
[319295754,1710642654603,-615.53,0.00015499,2]
[319295755,1710642654615,-615.53,0.00015499,2]
[319295756,1710642654626,-615.53,0.00015499,2]
[319295757,1710642654638,-615.67175684,0.00015499,2]
[319295758,1710642654656,-541.5,0.00015499,2]
[319295759,1710642654667,-541.5,0.00015499,2]
[319295760,1710642654678,-541.5,0.00015499,2]
[319295761,1710642654688,-541.5,0.00015499,2]
[319295762,1710642654697,-541.5,0.00015499,2]
[319295763,1710642654708,-541.5,0.00015499,2]
[319295764,1710642654717,-541.5,0.00015499,2]
[319295765,1710642654728,-541.5,0.00015499,2]
[319295766,1710642654738,-541.65921038,0.00015499,2]
[319295767,1710642654749,-1292.38,0.00015499,2]
[319295768,1710642654760,-1292.38,0.00015499,2]
[319295769,1710642654771,-1292.38,0.00015499,2]
[319295770,1710642654783,-1292.38,0.00015499,2]
[319295771,1710642654793,-1292.38,0.00015499,2]
[319295772,1710642654804,-1292.38,0.00015499,2]
[319295773,1710642654814,-1292.38,0.00015499,2]
[319295774,1710642654825,-1292.38,0.00015499,2]
[319295775,1710642654836,-1292.46713397,0.00015499,2]
[319295776,1710642654846,-994.44,0.00015499,2]
[319295777,1710642654856,-994.44,0.00015499,2]
[319295778,1710642654866,-994.44,0.00015499,2]
[319295779,1710642654876,-994.44,0.00015499,2]
[319295780,1710642654886,-994.44,0.00015499,2]
[319295781,1710642654896,-994.44,0.00015499,2]
[319295782,1710642654907,-994.44,0.00015499,2]
[319295783,1710642654917,-994.575383,0.00015499,2]
[319295784,1710642654927,-603.88564431,0.00015499,2]
[319295785,1710642654939,-630.8,0.00015499,2]
[319295786,1710642654949,-630.8,0.00015499,2]
[319295787,1710642654960,-630.8,0.00015499,2]
[319295788,1710642654970,-630.8,0.00015499,2]
[319295789,1710642654980,-630.8,0.00015499,2]
[319295790,1710642654990,-630.8,0.00015499,2]
[319295791,1710642655000,-630.8,0.00015499,2]
[319295792,1710642655010,-630.83903672,0.00015499,2]
[319295793,1710642655020,-500.0,0.00015499,2]
[319295794,1710642655030,-302.10846923,0.00015499,2]
[319295795,1710642655041,-544.08,0.00015499,2]
[319295796,1710642655051,-544.08,0.00015499,2]
[319295797,1710642655062,-544.08,0.00015499,2]
[319295798,1710642655072,-544.08,0.00015499,2]
[319295799,1710642655083,-544.08,0.00015499,2]
[319295800,1710642655093,-544.08,0.00015499,2]
[319295801,1710642655104,-544.08,0.00015499,2]
[319295802,1710642655114,-544.09571407,0.00015499,2]
[319295803,1710642655124,-500.0,0.00015499,2]
[319295804,1710642655134,-500.0,0.00015499,2]
[319295805,1710642655144,-500.0,0.00015499,2]
[319295806,1710642655154,-322.90506239,0.00015499,2]
[319295807,1710642655165,-635.79,0.00015499,2]
[319295808,1710642655176,-827.9,0.00015499,2]
[319295809,1710642655186,-635.79,0.00015499,2]
[319295810,1710642655196,-827.9,0.00015499,2]
[319295811,1710642655206,-635.79,0.00015499,2]
[319295812,1710642655216,-827.9,0.00015499,2]
[319295813,1710642655226,-635.79,0.00015499,2]
[319295814,1710642655236,-827.9,0.00015499,2]
[319295815,1710642655246,-635.79,0.00015499,2]
[319295816,1710642655256,-827.9,0.00015499,2]
[319295817,1710642655266,-635.79,0.00015499,2]
[319295818,1710642655276,-827.9,0.00015499,2]
[319295819,1710642655286,-635.97,0.00015499,2]
[319295820,1710642655297,-827.9,0.00015499,2]
[319295821,1710642655307,-827.996717,0.00015499,2]
[319295822,1710642655317,-2646.79,0.00015499,2]
[319295823,1710642655327,-2646.79,0.00015499,2]
[319295824,1710642655337,-2646.79,0.00015499,2]
[319295825,1710642655348,-2646.79,0.00015499,2]
[319295826,1710642655359,-2646.79,0.00015499,2]
[319295827,1710642655369,-2646.79,0.00015499,2]
[319295828,1710642655380,-2646.92,0.00015499,2]
[319295829,1710642655390,-150.0,0.00015499,2]
[319295830,1710642655400,-150.0,0.00015499,2]
[319295831,1710642655411,-150.0,0.00015499,2]
[319295832,1710642655421,-150.0,0.00015499,2]
[319295833,1710642655432,-150.0,0.00015499,2]
[319295834,1710642655442,-150.0,0.00015499,2]
[319295835,1710642655453,-150.0,0.00015499,2]
[319295836,1710642655464,-150.0,0.00015499,2]
[319295837,1710642655475,-150.0,0.00015499,2]
[319295838,1710642655486,-150.0,0.00015499,2]
[319295839,1710642655496,-4953.72,0.00015499,2]
[319295840,1710642655506,-150.0,0.00015499,2]
[319295841,1710642655517,-4953.72,0.00015499,2]
[319295842,1710642655528,-4953.72,0.00015499,2]
[319295843,1710642655539,-4953.72,0.00015499,2]
[319295844,1710642655549,-4953.72,0.00015499,2]
[319295845,1710642655560,-4953.72,0.00015499,2]
[319295846,1710642655571,-150.0,0.00015499,2]
[319295847,1710642655581,-4953.95623884,0.00015499,2]
[319295848,1710642655592,-150.0,0.00015499,2]
[319295849,1710642655602,-150.0,0.00015499,2]
[319295850,1710642655613,-150.0,0.00015499,2]
[319295851,1710642655623,-150.0,0.00015499,2]
[319295852,1710642655635,-150.0,0.00015499,2]
[319295853,1710642655647,-1890.61,0.00015499,2]
[319295854,1710642655658,-1890.61,0.00015499,2]
[319295855,1710642655668,-1890.61,0.00015499,2]
[319295856,1710642655678,-150.0,0.00015499,2]
[319295857,1710642655689,-1890.61,0.00015499,2]
[319295858,1710642655699,-1890.61,0.00015499,2]
[319295859,1710642655710,-1890.73,0.00015499,2]
[319295860,1710642655721,-150.0,0.00015499,2]
[319295861,1710642655732,-1587.31,0.00015499,2]
[319295862,1710642655742,-1587.31,0.00015499,2]
[319295863,1710642655752,-1587.31,0.00015499,2]
[319295864,1710642655762,-150.0,0.00015499,2]
[319295865,1710642655772,-1587.31,0.00015499,2]
[319295866,1710642655782,-1587.31,0.00015499,2]
[319295867,1710642655792,-1587.31,0.00015499,2]
[319295868,1710642655802,-150.0,0.00015499,2]
[319295869,1710642655812,-150.0,0.00015499,2]
[319295870,1710642655822,-1587.37755051,0.00015499,2]
[319295871,1710642655833,-150.0,0.00015499,2]
[319295872,1710642655843,-214.14651777,0.00015499,2]
[319295873,1710642655853,-932.78,0.00015499,2]
[319295874,1710642655864,-932.78,0.00015499,2]
[319295875,1710642655874,-1236.7,0.00015499,2]
[319295876,1710642655884,-1236.7,0.00015499,2]
[319295877,1710642655895,-932.78,0.00015499,2]
[319295878,1710642655905,-1236.7,0.00015499,2]
[319295879,1710642655915,-932.78,0.00015499,2]
[319295880,1710642655925,-1236.7,0.00015499,2]
[319295881,1710642655936,-932.78,0.00015499,2]
[319295882,1710642655946,-1236.7,0.00015499,2]
[319295883,1710642655956,-932.78,0.00015499,2]
[319295884,1710642655966,-1236.7,0.00015499,2]
[319295885,1710642655976,-932.78,0.00015499,2]
[319295886,1710642655986,-932.88532518,0.00015499,2]
[319295887,1710642655996,-1236.90012977,0.00015499,2]
[319295888,1710642656006,-706.21299389,0.000155,3]
[319295889,1710642656016,-1683521.9518288,0.000155,2]
[319295890,1710642656031,-5101.2857355,0.000155,2]
[319295891,1710642656043,-15692.26080867,0.000155,2]
[319295892,1710642656074,-2734.9,0.000155,2]
[319295893,1710642656087,-2627.86479443,0.000155,2]
[319295894,1710642656106,-8455.82897389,0.000155,2]
[319295895,1710642656118,-3316.1641336,0.000155,2]
[319295896,1710642656131,-2101.15769662,0.000155,2]
[319295897,1710642656152,-432.0,0.00015417,2]
[319295898,1710642656162,-264320.25940431,0.000155,2]
[319295899,1710642656267,-1232.7457524,0.000155,2]
[319295900,1710642656279,-23741.69394791,0.000155,2]
[319295901,1710642656291,-515.79431317,0.000155,2]
[319295902,1710642891831,599.27,0.00012003,2]
[319295903,1710643318470,569.3,0.00011839,2]
[319295910,1710643761093,540.83,0.00011664,2]
[319295913,1710643832419,-373.93546042,0.0001357,2]
[319295914,1710643832432,-30.02286266,0.00013571,2]
[319295915,1710643832485,-124.97713734,0.00013571,2]
[319295916,1710643832497,-158.09190079,0.00013571,2]
[319295917,1710643832508,-725.87224295,0.00013571,2]
[319295918,1710643832522,-502.77622232,0.00013571,2]
[319295919,1710643832537,-1639.42304312,0.00013571,2]
[319295920,1710643832567,-2348.13085426,0.00013571,2]
[319295921,1710643832579,-360.53097053,0.00013572,2]
[319295922,1710643832591,-23900.0,0.00013574,2]
[319295923,1710643832602,-250.0,0.00013597,2]
[319295924,1710643832613,-250.0,0.00013699,2]
[319295925,1710643832625,-656.81146066,0.00013718,2]
[319295926,1710643832638,-285.9,0.0001373,2]
[319295927,1710643832648,-2000.0,0.00013735,2]
[319295928,1710643832657,-8027.43611455,0.00013735,2]
[319295929,1710643832671,-1972.55388545,0.00013735,2]
[319295930,1710643832680,-5800.0,0.000138,2]
[319295931,1710643832692,-511.3,0.000138,2]
[319295932,1710643832702,-250.38,0.00013803,2]
[319295933,1710643832712,-1968.16,0.00013803,2]
[319295934,1710643832722,-150.0,0.00013812,2]
[319295935,1710643832732,-393.24,0.00013812,2]
[319295936,1710643832743,-1106.94,0.00013813,2]
[319295937,1710643832753,-150.0,0.00013836,2]
[319295938,1710643832763,-499.99,0.00013841,2]
[319295939,1710643832774,-488.7,0.00013864,2]
[319295940,1710643832786,-212.15,0.00013877,2]
[319295941,1710643832796,-180.81,0.00013906,2]
[319295942,1710643832807,-540.83,0.00013928,2]
[319295943,1710643832817,-245.62,0.00013967,2]
[319295944,1710643832827,-6134.89,0.00014504,2]
[319295945,1710643832838,-19999.99,0.00014504,2]
[319295946,1710643832848,-155.0,0.00014547,2]
[319295947,1710643832858,-922.44,0.00014548,2]
[319295948,1710643832869,-408.41,0.00014548,2]
[319295949,1710643832878,-155.0,0.00014575,2]
[319295950,1710643832888,-922.44,0.000146,2]
[319295951,1710643832897,-408.41,0.000146,2]
[319295952,1710643832906,-408.41,0.000146,2]
[319295953,1710643832915,-922.44,0.000146,2]
[319295954,1710643832924,-408.41,0.000146,2]
[319295955,1710643832937,-922.44,0.000146,2]
[319295956,1710643832947,-155.0,0.00014602,2]
[319295957,1710643832958,-152.0,0.0001463,2]
[319295958,1710643832967,-6921.0,0.0001463,2]
[319295959,1710643832977,-152.0,0.00014657,2]
[319295960,1710643832986,-152.0,0.00014684,2]
[319295961,1710643832996,-177.883877,0.00014697,2]
[319295962,1710643833009,-153.862125,0.00014697,2]
[319295963,1710643833020,-213.296781,0.00014697,2]
[319295964,1710643833030,-408.41,0.000147,2]
[319295965,1710643833039,-922.44,0.000147,2]
[319295966,1710643833049,-152.0,0.00014712,2]
[319295967,1710643833060,-152.0,0.00014739,2]
[319295968,1710643833070,-152.0,0.00014767,2]
[319295969,1710643833079,-152.0,0.00014794,2]
[319295970,1710643833090,-152.0,0.00014821,2]
[319295971,1710643833101,-152.0,0.00014849,2]
[319295972,1710643833112,-152.0,0.00014876,2]
[319295973,1710643833122,-24931.28538883,0.000149,2]
[319295974,1710643833136,-2517.5961336,0.000149,2]
[319295994,1710643838655,-18181.40127757,0.000149,2]
[319295995,1710643838665,-152.0,0.00014904,2]
[319295996,1710643838674,-152.0,0.00014931,2]
[319295997,1710643838683,-152.0,0.00014958,2]
[319295998,1710643838692,-152.0,0.00014986,2]
[319295999,1710643838702,-321.62389134,0.00015,2]
[319296000,1710643838712,-2550.0,0.00015,4]
[319296001,1710643838721,-19368.35751359,0.00015,2]
[319296002,1710643838730,-166.0,0.00015013,2]
[319296003,1710643838740,-150.0,0.00015143,2]
[319296004,1710643838749,-2500.0,0.00015167,2]
[319296005,1710643838758,-123877.9606,0.00015167,2]
[319296006,1710643838768,-1483.12825703,0.00015233,2]
[319296007,1710643838777,-1483.12825698,0.00015233,2]
[319296008,1710643838787,-1483.12825698,0.00015235,2]
[319296009,1710643838796,-1483.12825698,0.00015259,2]
[319296010,1710643838805,-245153.35410759,0.00015268,2]
[319296011,1710643838814,-150.0,0.00015273,2]
[319296012,1710643838823,-1483.12825698,0.00015282,2]
[319296013,1710643838832,-3543.0,0.000153,2]
[319296014,1710643838841,-181.31060515,0.000153,2]
[319296015,1710643838851,-181.31060515,0.000153,2]
[319296016,1710643838860,-181.31060515,0.000153,2]
[319296017,1710643838869,-181.31060515,0.000153,2]
[319296018,1710643838878,-181.31060515,0.000153,2]
[319296019,1710643838887,-181.31060515,0.000153,2]
[319296020,1710643838899,-181.31060515,0.000153,2]
[319296021,1710643838910,-181.31060515,0.000153,2]
[319296022,1710643838921,-181.31060515,0.000153,2]
[319296023,1710643838932,-181.31060515,0.000153,2]
[319296024,1710643838943,-181.31060515,0.000153,2]
[319296025,1710643838952,-181.31060515,0.000153,2]
[319296026,1710643838967,-181.31060515,0.000153,2]
[319296027,1710643838977,-181.31060515,0.000153,2]
[319296028,1710643838987,-181.31060515,0.000153,2]
[319296029,1710643838996,-181.31060515,0.000153,2]
[319296030,1710643839006,-181.31060515,0.000153,2]
[319296031,1710643839015,-181.31060515,0.000153,2]
[319296032,1710643839027,-181.31060515,0.000153,2]
[319296033,1710643839035,-181.31060515,0.000153,2]
[319296034,1710643839045,-181.31060515,0.000153,2]
[319296035,1710643839054,-181.31060515,0.000153,2]
[319296036,1710643839065,-181.31060515,0.000153,2]
[319296037,1710643839074,-181.31060515,0.000153,2]
[319296038,1710643839082,-181.31060515,0.000153,2]
[319296039,1710643839093,-181.31060515,0.000153,2]
[319296040,1710643839102,-181.31060515,0.000153,2]
[319296041,1710643839110,-181.31060515,0.000153,2]
[319296042,1710643839120,-181.31060515,0.000153,2]
[319296043,1710643839129,-181.31060515,0.000153,2]
[319296044,1710643839138,-1483.12825698,0.00015306,2]
[319296045,1710643839148,-1483.12825698,0.00015329,2]
[319296046,1710643839157,-162.87992,0.00015342,2]
[319296047,1710643839166,-250.91508236,0.00015343,2]
[319296048,1710643839175,-1483.12825698,0.00015353,2]
[319296049,1710643839184,-800.0,0.0001537,2]
[319296050,1710643839193,-800.0,0.0001537,2]
[319296051,1710643839202,-200.0,0.00015375,2]
[319296052,1710643839213,-200.0,0.00015376,2]
[319296053,1710643839222,-200.0,0.00015376,2]
[319296054,1710643839230,-800.0,0.00015376,2]
[319296055,1710643839239,-200.0,0.00015376,2]
[319296056,1710643839248,-200.0,0.00015376,2]
[319296057,1710643839257,-500.0,0.00015376,2]
[319296058,1710643839267,-1483.12825698,0.00015376,2]
[319296059,1710643839276,-153.03217688,0.00015395,2]
[319296060,1710643839285,-5000.0,0.00015395,2]
[319296061,1710643839294,-172.39748025,0.00015396,2]
[319296062,1710643839303,-153.03217688,0.00015397,2]
[319296063,1710643839312,-1835.20362571,0.00015397,2]
[319296064,1710643839321,-500.0,0.00015397,2]
[319296065,1710643839330,-500.0,0.00015397,2]
[319296066,1710643839339,-500.0,0.00015397,2]
[319296067,1710643839349,-500.0,0.00015397,2]